[Event "GER-ch Youth-ODJM 2022"]
[Site "Willingen"]
[Date "2022.06.06"]
[Round "3.22"]
[White "Frohnhaeuser, Simon"]
[Black "Özdemir, Edwin-Daniel"]
[Result "1-0"]
[ECO "B43"]
[WhiteElo "1939"]
[BlackElo "1718"]
[Annotator "TA"]
[PlyCount "83"]
[EventDate "2022.06.05"]
[EventType "swiss"]
[EventRounds "9"]
[EventCountry "GER"]
[SourceTitle "playchess.com"]
[Source "ChessBase"]
[SourceQuality "1"]
[TimeControl "40/4500+30:900+30"]

{[%evp 14,83,47,38,91,31,35,28,39,31,64,34,42,31,31,-24,-14,-30,-8,-26,-16,-42,-40,-65,-65,-66,-62,-111,-120,-136,-127,-179,-172,-354,-344,-364,-377,-543,-277,-401,-268,-357,-359,-326,-315,-335,-220,-201,-161,-185,-77,-131,-136,-134,-17,-21,8,8,8,8,8,14,15,12,29992,29993,29993,29994,29994,29995,29995,29996]} 1. e4 {[%emt 0:00:00]} c5 {[%emt 0:00:00]} 2. Nf3 {[%emt 0:00:00]} e6 {[%emt 0:00:00]} 3. d4 {[%emt 0:00:00]} cxd4 {[%emt 0:00:00]} 4. Nxd4 {[%emt 0:00:00]} a6 {[%emt 0:00:00]} 5. Nc3 {[%emt 0:00:00]} b5 {[%emt 0:00:00]} 6. Bd3 {[%emt 0:00:00]} Bb7 {[%emt 0:00:00]} 7. Qe2 {[%emt 0:00:00]} d6 {[%emt 0:00:00]} 8. O-O {[%emt 0:00:00]} Nd7 {[%emt 0:00:00] B43: Sicilian: Kan Variation: 5 Nc3.} (8... Be7 $14) 9. Bd2 {[%emt 0:00:00]} (9. a4 $16) 9... Ngf6 {[%emt 0:00:00]} 10. a4 {[%emt 0:00:00]} b4 {[%emt 0:05:55] White has an edge.} 11. Na2 {[%emt 0:00:00] [#]} Nc5 $146 {[%emt 0:09:28][%cal Rf6e4]} ({Predecessor:} 11... a5 12. c3 bxc3 13. Nxc3 Be7 14. Bb5 Rc8 15. Kh1 O-O 16. f3 Nc5 17. Qe1 Qb6 {1-0 (109) Dembo,Y (2446)-Muzychuk,M (2436) Beijing 2008}) 12. Nxb4 {[%emt 0:19:24]} Nfxe4 {[%emt 0:07:24]} 13. Bxe4 {[%emt 0:15:09]} Nxe4 {[%emt 0:05:10][%cal Bc5e4,Be4f6,Bf6d7][%mdl 32]} 14. Be3 {[%emt 0:00:15]} (14. Ndc6 $14 Qd7 15. Qxe4) 14... d5 $11 {[%emt 0:06:29]} 15. Nd3 {[%emt 0:03:27]} Bd6 {[%emt 0:02:52]} 16. f3 {[%emt 0:10:56]} Nf6 {[%emt 0:25:40]} (16... Qh4 $2 17. g3 Nxg3 18. hxg3 Qxg3+ 19. Qg2 $16) 17. Nb3 {[%emt 0:00:13]} Qc7 {[%emt 0:01:05]} 18. g3 {[%emt 0:01:23]} O-O {[%emt 0:06:52]} 19. Bc5 {[%emt 0:02:48]} Rac8 {[%emt 0:03:03]} 20. Rfc1 {[%emt 0:06:34]} (20. Bxd6 $1 $15 Qxd6 21. Qf2) 20... Nd7 $17 {[%emt 0:05:14]} 21. Bxd6 {[%emt 0:07:52]} Qxd6 {[%emt 0:00:05]} 22. Kg2 {[%emt 0:00:25]} (22. Nf2 $17 {is a better defense.}) 22... e5 $19 {[%emt 0:00:28][%cal Be6e5,Be5e4,Be4f3][%mdl 32]} 23. Na5 $2 {[%emt 0:02:08]} (23. Qd2) 23... Ba8 {[%emt 0:00:52]} 24. Nf2 {[%emt 0:05:04]} e4 {[%emt 0:03:18]} 25. Kg1 {[%emt 0:01:20]} (25. Qd2 $142 Qe5 26. Qf4 (26. fxe4 $2 dxe4 27. Qe3 Qxa5 $19)) 25... exf3 {[%emt 0:01:24]} 26. Qd3 {[%emt 0:00:04]} (26. Qd2 $142) 26... Ne5 {[%emt 0:01:01]} ({Not} 26... Qb6 27. Nb3 $17) 27. Qd4 {[%emt 0:02:10]} f5 {[%emt 0:00:49][%cal Of5f4] [#] Hoping for ...f4!} 28. Qf4 {[%emt 0:02:25]} Qf6 {[%emt 0:00:48] aiming for ...Ng6.} 29. c3 {[%emt 0:02:04][%cal Bc2c3,Bc3c4,Bc4c5,Bc5c6][%mdl 32]} Rfe8 {[%emt 0:00:42] Strongly threatening ...Qb6.} 30. Re1 {[%emt 0:00:12]} Rb8 {[%emt 0:00:23] Inhibits Nb3.} 31. b4 {[%emt 0:01:51]} Rbc8 {[%emt 0:00:22]} (31... d4 $19 {and Black stays clearly on top.} 32. cxd4 Ng6) 32. Rac1 {[%emt 0:00:37]} ({White should try} 32. Qd4) 32... g5 {[%emt 0:00:32]} 33. Qd4 {[%emt 0:00:18]} Qd6 {[%emt 0:00:48]} ({Better is} 33... Rc7 $17 {White must now prevent ...Rce7.} 34. b5 Rce7) 34. c4 $1 $11 {[%emt 0:02:39]} Ng4 {[%emt 0:00:50]} 35. c5 {[%emt 0:01:39]} Qh6 {[%emt 0:00:28]} 36. Nxg4 {[%emt 0:01:25]} fxg4 {[%emt 0:00:37]} 37. c6 {[%emt 0:00:04] Active counter play!} Rxe1+ {[%emt 0:00:33]} 38. Rxe1 {[%emt 0:00:19] Dancing on a razor blade.} Qh3 $2 {[%emt 0:00:34][%mdl 8192] [#]} (38... Bxc6 $11 39. Nxc6 Qxc6) 39. Qxd5+ {[%emt 0:00:20] White mates.} Kh8 {[%emt 0:00:41]} 40. Qe5+ {[%emt 0:00:31]} Kg8 {[%emt 0:00:06]} 41. Qe6+ {[%emt 0:16:20]} Kg7 {[%emt 0:15:13]} 42. Qd7+ {[%emt 0:00:13] What a bad dream for Black.  Weighted Error Value: White=0.28 (precise) /Black=0.47} 1-0

[Event "GER-ch Youth-ODJM 2022"]
[Site "Willingen"]
[Date "2022.06.07"]
[Round "4.1"]
[White "Maul, Maik Joel"]
[Black "Kalina, Lena"]
[Result "1-0"]
[ECO "A45"]
[WhiteElo "1532"]
[BlackElo "1735"]
[Annotator "NA RC COMBH"]
[PlyCount "105"]
[EventDate "2022.06.05"]
[EventType "swiss"]
[EventRounds "9"]
[EventCountry "GER"]
[SourceTitle "playchess.com"]
[Source "ChessBase"]
[SourceQuality "1"]
[TimeControl "40/4500+30:900+30"]

1. d4 {[%emt 0:00:00]} Nf6 {[%emt 0:00:00]} 2. Nc3 {[%emt 0:00:00]} d5 {[%emt 0:00:00]} 3. Bf4 {[%emt 0:00:00]} c5 {[%emt 0:00:00]} 4. e3 {[%emt 0:00:00]} cxd4 {[%emt 0:00:00]} 5. exd4 {[%emt 0:00:00]} a6 {[%emt 0:00:00]} 6. Bd3 {[%emt 0:00:00]} Nc6 {[%emt 0:00:00]} 7. Nce2 {[%emt 0:00:00]} e6 {[%emt 0:00:00]} 8. Nf3 {[%emt 0:00:00]} Bd7 {[%emt 0:00:00]} 9. c3 {[%emt 0:00:00]} Be7 {[%emt 0:00:00]} 10. Qc2 {[%emt 0:00:00]} b5 {[%emt 0:02:46]} 11. Ne5 {[%emt 0:00:00]} Rc8 {[%emt 0:05:37]} 12. a3 {[%emt 0:01:10]} Qb6 {[%emt 0:06:22]} 13. O-O {[%emt 0:03:07]} b4 {[%emt 0:08:17]} 14. Nxd7 {[%emt 0:09:32]} Nxd7 {[%emt 0:05:52]} 15. axb4 {[%emt 0:00:41]} Nxb4 {[%emt 0:02:47]} 16. Qb1 {[%emt 0:01:56]} Nxd3 {[%emt 0:03:36]} 17. Qxd3 {[%emt 0:00:34]} a5 {[%emt 0:03:38]} 18. Ra2 {[%emt 0:02:28]} Bd8 {[%emt 0:05:34]} 19. Rfa1 {[%emt 0:04:06]} Qc6 {[%emt 0:02:32]} 20. Nc1 {[%emt 0:04:13]} O-O {[%emt 0:04:35]} 21. Nb3 {[%emt 0:02:05]} Qb7 {[%emt 0:00:37]} 22. Qc2 {[%emt 0:02:40]} Nf6 {[%emt 0:10:58]} 23. Nxa5 {[%emt 0:04:42]} Qe7 {[%emt 0:04:08]} 24. Nb3 {[%emt 0:04:47]} Bb6 {[%emt 0:02:06]} 25. Qe2 {[%emt 0:02:03]} Bc7 {[%emt 0:06:06]} 26. Bxc7 {[%emt 0:18:26]} Qxc7 {[%emt 0:00:48]} 27. Nc5 {[%emt 0:02:18]} Qf4 {[%emt 0:01:27]} 28. Ra7 {[%emt 0:04:10]} h6 {[%emt 0:03:33]} 29. b4 {[%emt 0:07:42]} Rb8 {[%emt 0:03:03]} 30. b5 {[%emt 0:01:42]} Rfc8 {[%emt 0:00:41]} 31. R7a6 {[%emt 0:04:46]} Qc7 {[%emt 0:01:14]} 32. Qb2 {[%emt 0:01:23]} Rb6 {[%emt 0:00:48]} 33. Rxb6 {[%emt 0:01:25]} Qxb6 {[%emt 0:00:05]} 34. Ra6 {[%emt 0:00:08]} Qd8 {[%emt 0:01:12]} 35. b6 {[%emt 0:01:35]} Nd7 {[%emt 0:00:41]} 36. b7 {[%emt 0:03:21]} Rb8 {[%emt 0:00:11]} 37. Ra8 {[%emt 0:00:47]} Rxa8 {[%emt 0:01:08]} 38. bxa8=Q {[%emt 0:00:24]} Qxa8 {[%emt 0:00:04]} 39. Nxd7 {[%emt 0:00:05]} Qa4 {[%emt 0:00:46]} 40. Qb8+ {[%emt 0:00:18]} Kh7 {[%emt 0:00:06]} 41. Nf8+ {[%emt 0:15:14]} Kg8 {[%emt 0:15:31]} 42. Nxe6+ {[%emt 0:00:39]} Kh7 {[%emt 0:00:06]} 43. Nf8+ {[%emt 0:00:03]} Kg8 {[%emt 0:00:20]} 44. h3 {[%emt 0:00:00]} Qa1+ {[%emt 0:00:00]} 45. Kh2 {[%emt 0:00:00]} Qxc3 {[%emt 0:00:00]} 46. Nd7+ {[%emt 0:00:00]} Kh7 {[%emt 0:00:00]} 47. Qe8 {[%emt 0:00:00]} Qc7+ {[%emt 0:00:00]} 48. g3 {[%emt 0:00:00]} Qa7 {[%emt 0:00:00]} 49. Qxf7 {[%emt 0:00:00]} Qxd4 {[%emt 0:00:00]} 50. Nf8+ {[%emt 0:00:00]} Kh8 {[%emt 0:00:00]} 51. Ng6+ {[%emt 0:00:00]} Kh7 {[%emt 0:00:00]} 52. Ne7 {[%emt 0:00:00]} Qa7 {[%emt 0:00:00]} 53. Qg8# 1-0

[Event "GER-ch Youth-ODJM 2022"]
[Site "Willingen"]
[Date "2022.06.07"]
[Round "4.2"]
[White "Andrade, Ruben"]
[Black "Goetz, Timon"]
[Result "1/2-1/2"]
[ECO "B20"]
[WhiteElo "1694"]
[BlackElo "1558"]
[Annotator "NA RC COMBH"]
[PlyCount "86"]
[EventDate "2022.06.05"]
[EventType "swiss"]
[EventRounds "9"]
[EventCountry "GER"]
[SourceTitle "playchess.com"]
[Source "ChessBase"]
[SourceQuality "1"]
[TimeControl "40/4500+30:900+30"]

1. e4 {[%emt 0:00:00]} c5 {[%emt 0:00:00]} 2. c4 {[%emt 0:00:00]} Nc6 {[%emt 0:00:00]} 3. Nc3 {[%emt 0:00:00]} g6 {[%emt 0:00:00]} 4. g3 {[%emt 0:00:00]} Bg7 {[%emt 0:00:00]} 5. Bg2 {[%emt 0:00:00]} Nf6 {[%emt 0:00:00]} 6. Nge2 {[%emt 0:00:00]} O-O {[%emt 0:00:00]} 7. O-O {[%emt 0:00:00]} a6 {[%emt 0:00:00]} 8. d3 {[%emt 0:00:00]} Rb8 {[%emt 0:00:00]} 9. a4 {[%emt 0:00:00]} Ne8 {[%emt 0:00:00]} 10. Be3 {[%emt 0:00:00]} d6 {[%emt 0:00:00]} 11. Rb1 {[%emt 0:00:00]} Nc7 {[%emt 0:00:00]} 12. d4 {[%emt 0:00:00]} cxd4 {[%emt 0:00:00]} 13. Nxd4 {[%emt 0:00:00]} Ne6 {[%emt 0:00:00]} 14. Nce2 {[%emt 0:03:25]} Bd7 {[%emt 0:00:00]} 15. f4 {[%emt 0:04:02]} Ncxd4 {[%emt 0:02:41]} 16. Nxd4 {[%emt 0:00:16]} Nc5 {[%emt 0:00:25]} 17. a5 {[%emt 0:14:21]} b6 {[%emt 0:06:50]} 18. axb6 {[%emt 0:16:22]} Rxb6 {[%emt 0:04:04]} 19. b4 {[%emt 0:02:43]} Na4 {[%emt 0:04:08]} 20. Qc2 {[%emt 0:03:32]} Qb8 {[%emt 0:15:58]} 21. b5 {[%emt 0:01:51]} axb5 {[%emt 0:00:20]} 22. cxb5 {[%emt 0:06:29]} Bxb5 {[%emt 0:05:41]} 23. Rxb5 {[%emt 0:01:29]} Rxb5 {[%emt 0:03:28]} 24. Qxa4 {[%emt 0:00:37]} Rb4 {[%emt 0:03:22]} 25. Qd1 {[%emt 0:00:16]} Rc8 {[%emt 0:02:14]} 26. f5 {[%emt 0:09:19]} Rc3 {[%emt 0:05:31]} 27. Bf2 {[%emt 0:00:41]} Rcc4 {[%emt 0:00:36]} 28. Nc2 {[%emt 0:07:16]} Rb2 {[%emt 0:05:19]} 29. Ne3 {[%emt 0:00:45]} Rd4 {[%emt 0:01:54]} 30. Qf3 {[%emt 0:01:26]} Rd3 {[%emt 0:03:35]} 31. fxg6 {[%emt 0:02:44]} hxg6 {[%emt 0:04:21]} 32. Rd1 {[%emt 0:05:15]} Rb1 {[%emt 0:01:38]} 33. Rxb1 {[%emt 0:01:51]} Qxb1+ {[%emt 0:00:02]} 34. Bf1 {[%emt 0:00:06]} Bd4 {[%emt 0:01:39]} 35. Qe2 {[%emt 0:02:31]} Ra3 {[%emt 0:07:12]} 36. Nc4 {[%emt 0:01:49]} Ra2 {[%emt 0:01:36]} 37. Qxa2 {[%emt 0:00:06]} Qxa2 {[%emt 0:00:23]} 38. Bxd4 {[%emt 0:00:03]} Qc2 {[%emt 0:02:45]} 39. e5 {[%emt 0:00:36]} Qd1 {[%emt 0:01:28]} 40. Bf2 {[%emt 0:02:32]} d5 {[%emt 0:03:00]} 41. Nb2 {[%emt 0:17:21]} Qd2 {[%emt 0:19:07]} 42. Nd3 {[%emt 0:00:30]} g5 {[%emt 0:00:30]} 43. h3 {[%emt 0:00:30]} e6 {[%emt 0:00:30]} 1/2-1/2

[Event "GER-ch Youth-ODJM 2022"]
[Site "Willingen"]
[Date "2022.06.07"]
[Round "4.3"]
[White "Gallasch, Jonas"]
[Black "Brinkmann, Fabian"]
[Result "0-1"]
[ECO "E10"]
[WhiteElo "2044"]
[BlackElo "2145"]
[Annotator "TA"]
[PlyCount "137"]
[EventDate "2022.06.05"]
[EventType "swiss"]
[EventRounds "9"]
[EventCountry "GER"]
[SourceTitle "playchess.com"]
[Source "ChessBase"]
[SourceQuality "1"]
[TimeControl "40/4500+30:900+30"]

{[%evp 9,137,25,13,21,14,12,84,63,110,54,112,105,119,18,163,153,167,139,289,289,290,282,482,495,458,458,429,321,305,324,295,198,546,62,196,182,315,218,256,153,170,0,0,0,297,323,269,0,0,0,45,42,41,34,41,0,0,0,0,-45,-42,-202,-214,-279,-272,-296,-284,-291,-280,-267,-285,-269,-93,-74,-87,-102,-110,-77,-80,-80,-77,-77,-83,-96,-96,-152,-154,-154,-27,-31,-20,-34,-28,-20,-5,-5,0,-284,-276,-232,-191,-454,-262,-3722,-2203,-3599,-1441,-29972,-29973,-29972,-29974,-29974,-29975,-29979,-29976,-29976,-29977,-29977,-29978,-29978,-29979,-29981,-29982,-29982,-29982,-29983,-29983,-29983,-29984,-29995]} 1. d4 {[%emt 0:00:00]} Nf6 {[%emt 0:00:00]} 2. c4 {[%emt 0:00:00]} e6 {[%emt 0:00:00]} 3. Nf3 {[%emt 0:00:00]} c5 {[%emt 0:00:00]} 4. d5 {[%emt 0:00:00]} b5 {[%emt 0:00:00]} 5. e4 {[%emt 0:00:00]} Nxe4 {[%emt 0:00:00]} 6. Bd3 {[%emt 0:00:00] E10: Blumenfeld Gambit.} Nf6 {[%emt 0:00:00]} 7. Nc3 {[%emt 0:00:00][%cal Bb1c3,Bc3e4,Be4g3][%mdl 32] now scores much better than the old 7.0-0.} (7. cxb5 Nxd5 8. Be4 Bb7 $17) 7... b4 {[%emt 0:13:35]} (7... bxc4 $11 8. Bxc4 Ba6) 8. Ne4 $1 $16 {[%emt 0:00:00] White is better.} Bb7 {[%emt 0:07:03]} (8... a5 $14 {deserves consideration.}) 9. Bg5 {[%emt 0:00:00]} (9. O-O $16) 9... d6 {[%emt 0:10:55] [#]} (9... Be7 $14 10. O-O d6) 10. Bxf6 $146 {[%emt 0:21:43]} ({Predecessor:} 10. dxe6 fxe6 11. Bxf6 gxf6 12. Nh4 Qe7 13. Ng3 f5 14. Nf3 Bg7 15. Rb1 O-O 16. O-O {0-1 (29) Belous,M (1806)-Polivanov,A (2381) Zaporozhye 2010}) 10... gxf6 {[%emt 0:05:01]} 11. Bc2 {[%emt 0:02:17]} (11. O-O $1 $16) 11... f5 {[%emt 0:08:11]} (11... exd5 $11 12. cxd5 f5) 12. Ba4+ $18 {[%emt 0:08:51][%mdl 1024] White has strong compensation.} Ke7 {[%emt 0:00:07]} 13. Ng3 {[%emt 0:01:37]} (13. Neg5 h6 14. Nh3 Bg7 $15) 13... h5 {[%emt 0:11:20]} (13... Nd7 $16 {might work better.}) 14. Qe2 {[%emt 0:06:37] Nxf5+ is the strong threat.} f4 {[%emt 0:04:23]} 15. Ne4 {[%emt 0:02:34]} Qa5 $2 {[%emt 0:07:42]} (15... e5 16. Nxe5 Bg7) 16. b3 {[%emt 0:02:56]} Bg7 {[%emt 0:01:01]} 17. O-O-O {[%emt 0:01:27]} e5 {[%emt 0:01:23]} 18. Rhe1 {[%emt 0:05:52][%cal Oe4d6]} Qc7 {[%emt 0:03:33]} 19. g3 {[%emt 0:06:21]} (19. Neg5 Kf8 $14) 19... fxg3 {[%emt 0:01:20]} 20. Nxg3 {[%emt 0:00:28] Pair of Knights!} (20. hxg3 Bc8 $16) 20... Bc8 {[%emt 0:00:45] [#] Prevents Nf5+.} (20... Bh6+ {is more resistant.} 21. Kb1 Nd7) 21. Nh4 $2 {[%emt 0:01:49]} ({White has to play} 21. Nxe5 $1 $18 {[%mdl 512] White threatens Ng6+ and mate.} Bxe5 22. f4) 21... Bh6+ {[%emt 0:00:07]} ({Black should play} 21... Kf8 $1 $14) 22. Kb1 {[%emt 0:00:17]} Bg5 {[%emt 0:01:19]} (22... Kf8 {is a better defense.}) 23. Nhf5+ {[%emt 0:00:58]} (23. Nf3 Bf6 24. Nxe5 Kf8) 23... Kf8 {[%emt 0:02:03]} 24. h4 {[%emt 0:04:35]} ({White should try} 24. Qf3 $18 Nd7 25. Ne4 (25. Nxh5 Nf6 $11)) 24... Bf4 $16 {[%emt 0:00:48]} 25. Qf3 $2 {[%emt 0:00:39]} (25. Qd3 $1 $18) 25... Qd8 $1 $11 {[%emt 0:01:18]} 26. Bc6 {[%emt 0:02:05]} Nxc6 {[%emt 0:01:59][%mdl 8192]} (26... Bxg3 $11 27. Nxg3 (27. Bxa8 Qf6 $17) 27... Bg4) 27. dxc6 $18 {[%emt 0:00:02]} Qf6 {[%emt 0:00:09]} 28. Qe4 $2 {[%emt 0:02:32]} (28. Nxd6 $18 {Strongly threatening c7.} Bg4 29. Qd5 Bxg3 30. fxg3 Bxd1 31. Rxd1) 28... Bxg3 $11 {[%emt 0:00:05]} 29. Nxg3 {[%emt 0:00:04] aiming for c7.} a5 {[%emt 0:00:33]} (29... Qxf2 $2 30. Qd5 $1 (30. c7 Qxg3 31. Rf1 Ke7 $14) 30... Bf5+ 31. Ka1 $18 (31. Nxf5 Qxf5+ 32. Kb2 Rh6 $17)) 30. Qd5 {[%emt 0:01:29]} Rh6 {[%emt 0:00:25]} 31. Ka1 {[%emt 0:03:16] Threatens to win with Ne4.} Qe6 {[%emt 0:01:28]} 32. Ne4 {[%emt 0:01:43][%cal Re4d6]} Qxd5 {[%emt 0:00:07]} 33. Rxd5 {[%emt 0:00:32]} (33. cxd5 a4 34. Kb2 Bg4 $15) 33... Ke7 {[%emt 0:00:48]} 34. Red1 {[%emt 0:00:16][%cal Re4d6]} (34. f4 $5) 34... Bg4 {[%emt 0:00:26]} 35. R1d2 {[%emt 0:01:51]} ({Better is} 35. Rxd6 $15 Rxd6 36. Rxd6) 35... Bf3 $19 {[%emt 0:00:30]} 36. Nxd6 {[%emt 0:08:04]} Bxd5 {[%emt 0:01:10]} 37. Nf5+ {[%emt 0:00:01]} Ke6 {[%emt 0:01:52]} 38. Ng7+ {[%emt 0:00:51]} Kf6 {[%emt 0:00:01]} 39. cxd5 {[%emt 0:00:12]} Kxg7 {[%emt 0:00:13]} 40. d6 {[%emt 0:00:03]} Rxd6 $2 {[%emt 0:01:06]} 41. Rxd6 {[%emt 0:16:53][%mdl 4096] Endgame KR-KR} Rc8 {[%emt 0:17:35]} 42. Kb2 {[%emt 0:00:00] [#]} f6 $1 {[%emt 0:00:00]} 43. Rd7+ {[%emt 0:00:00]} Kg6 {[%emt 0:00:00]} 44. c7 {[%emt 0:00:00]} Kf5 {[%emt 0:00:00]} 45. Kc2 {[%emt 0:00:00]} Ke6 {[%emt 0:00:00]} 46. Rh7 {[%emt 0:00:00]} Kd6 {[%emt 0:00:00]} 47. Kd3 {[%emt 0:00:00]} (47. Rxh5 $142 Rxc7 48. Rh8) 47... Rxc7 $17 {[%emt 0:00:00]} 48. Rxh5 {[%emt 0:00:00]} Kd5 {[%emt 0:00:00]} (48... Ke6 $17 {White must now prevent ...Rd7+.} 49. Rh8 Rd7+ 50. Ke3 a4) 49. Rh8 $11 {[%emt 0:00:00]} Rd7 {[%emt 0:00:00]} 50. h5 {[%emt 0:00:00]} f5 {[%emt 0:00:00]} 51. f3 {[%emt 0:00:00]} c4+ {[%emt 0:00:00]} 52. bxc4+ {[%emt 0:00:00]} Kc5+ {[%emt 0:00:00]} 53. Kc2 $2 {[%emt 0:00:00][%mdl 8192]} (53. Ke3 $11 {and White is okay.}) 53... Kxc4 $19 {[%emt 0:00:00]} 54. h6 {[%emt 0:00:00] [#]} a4 $1 {[%emt 0:00:00][%cal Ba5a4,Ba4b3][%mdl 32]} ({And not} 54... e4 55. fxe4 (55. h7 Kd4 $17) 55... fxe4 56. Re8 $17 (56. h7 Kd4 $17)) 55. h7 $2 {[%emt 0:00:00]} (55. Rb8 {was necessary.}) 55... b3+ {[%emt 0:00:00]} (55... Kd4 $142 56. Kd2 f4) 56. axb3+ $2 {[%emt 0:00:00]} (56. Kb2 Rc7 57. a3) 56... axb3+ {[%emt 0:00:00]} 57. Kc1 {[%emt 0:00:00]} Kd3 {[%emt 0:00:22] ( -> ...e4)} 58. Kb2 {[%emt 0:03:36]} e4 {[%emt 0:00:39] Black mates.} 59. fxe4 {[%emt 0:06:28]} fxe4 {[%emt 0:00:03]} 60. Rb8 {[%emt 0:00:57]} Rxh7 {[%emt 0:00:07]} 61. Kxb3 {[%emt 0:00:30]} e3 {[%emt 0:00:19]} 62. Rd8+ {[%emt 0:00:05]} Ke2 {[%emt 0:00:10]} 63. Kc3 {[%emt 0:00:55]} Ke1 {[%emt 0:02:49]} 64. Re8 {[%emt 0:00:32]} e2 {[%emt 0:00:07]} 65. Kc2 {[%emt 0:00:03]} Rf7 {[%emt 0:00:43]} 66. Kd3 {[%emt 0:00:26]} Kf1 {[%emt 0:00:22]} 67. Rh8 {[%emt 0:01:02]} e1=Q {[%emt 0:00:19]} 68. Rh1+ {[%emt 0:00:03]} Kf2 {[%emt 0:00:06]} 69. Kd4 {Both players deserved the win here.  Weighted Error Value: White=0.72/Black=0.46} 0-1

[Event "GER-ch Youth-ODJM 2022"]
[Site "Willingen"]
[Date "2022.06.07"]
[Round "4.3"]
[White "Turel, Tugrul"]
[Black "Hoffmann, Alexander"]
[Result "1-0"]
[ECO "C54"]
[WhiteElo "1206"]
[BlackElo "2404"]
[Annotator "TA"]
[PlyCount "73"]
[EventDate "2022.06.05"]
[EventType "swiss"]
[EventRounds "9"]
[EventCountry "GER"]
[SourceTitle "playchess.com"]
[Source "ChessBase"]
[SourceQuality "1"]
[TimeControl "40/4500+30:900+30"]

{[%evp 20,73,35,33,33,25,73,66,237,22,0,0,3,0,0,0,0,0,0,-9,207,206,221,218,225,224,326,313,493,491,474,456,546,257,686,568,663,654,666,497,491,447,735,735,668,643,616,582,5405,5173,6439,6416,29976,29977,6423,5269]} 1. e4 {[%emt 0:00:00]} e5 {[%emt 0:00:00]} 2. Nf3 {[%emt 0:00:00]} Nc6 {[%emt 0:00:00]} 3. Bc4 {[%emt 0:00:00]} Bc5 {[%emt 0:00:00]} 4. c3 {[%emt 0:00:00][%cal Bc2c3,Bc3d4,Bd4d5,Bd5d6][%mdl 32]} Nf6 {[%emt 0:00:00]} 5. d4 {[%emt 0:00:00]} exd4 {[%emt 0:00:00]} 6. cxd4 {[%emt 0:00:00]} Bb4+ {[%emt 0:00:00]} 7. Nc3 {[%emt 0:00:00]} Nxe4 {[%emt 0:00:00]} 8. O-O {[%emt 0:00:00]} Bxc3 {[%emt 0:00:00]} 9. d5 {[%emt 0:00:00]} O-O {[%emt 0:00:00]} 10. bxc3 {[%emt 0:00:00]} Ne7 {[%emt 0:03:53]} 11. Re1 {[%emt 0:00:00]} Nf6 {[%emt 0:09:39] C54: Giuoco Piano: 4 c3 Nf6, main lines with 5 d4 and 5 d3.} (11... Nxc3 $2 12. Qd4 Ncxd5 13. Bxd5 Nxd5 14. Qxd5 $18) 12. Bg5 {[%emt 0:00:00]} Ng6 {[%emt 0:05:34]} (12... Nf5 $11 {is superior.}) 13. d6 $16 {[%emt 0:00:00]} h6 $2 {[%emt 0:09:55] [#]} (13... cxd6 $1 $14 14. Qxd6 Qb6 15. Qxb6 axb6) 14. Bxf6 $146 {[%emt 0:01:17]} (14. Qc2 $18 {aiming for Qxg6.} Nh8 15. Bxf6 Qxf6 16. dxc7) ({Predecessor:} 14. Qd3 cxd6 15. Qxg6 d5 16. Bxf6 fxg6 17. Bxd5+ Kh7 18. Bxd8 Rxd8 19. Re7 Rb8 20. Rae1 b6 21. Ne5 Bb7 22. Bf7 d6 23. Bxg6+ Kg8 24. Nd7 Ra8 25. Nxb6 axb6 26. Rxb7 {1-0 (26) Medeuf,Y (2049)-Nardol,F (1884) Madiana 2015}) 14... Qxf6 $11 {[%emt 0:00:57]} 15. dxc7 {[%emt 0:00:14]} Qc6 {[%emt 0:11:47]} 16. Qb3 {[%emt 0:11:22][%cal Oc4f7] Black must now prevent Bxf7+!} d6 {[%emt 0:05:11]} 17. Nd4 {[%emt 0:02:03][%cal Bf3d4,Bd4b5,Bb5d6][%mdl 32]} Qxc7 {[%emt 0:03:54]} 18. Nb5 {[%emt 0:00:02]} Qc6 {[%emt 0:11:14]} 19. Rad1 {[%emt 0:01:02]} Ne5 {[%emt 0:04:13] [#] White now steadily converts the win.} (19... Nf4 $11 {and Black is okay.} 20. Bf1 (20. Bd5 Nxd5 21. Qxd5 Bg4 $15) 20... Rd8) 20. Bd5 $1 $18 {[%emt 0:01:24]} (20. Rxd6 Qxc4 21. Rxe5 Be6 22. Qxc4 Bxc4 $11) (20. Nxd6 Nxc4 21. Qxc4 Qxc4 22. Nxc4 Be6 $15) 20... Be6 {[%emt 0:08:31]} (20... Qc5 $2 {[#]} 21. Nxd6 $1 {[%mdl 512]} Bg4 22. Rxe5 $18) 21. Bxe6 {[%emt 0:01:13]} (21. Bxc6 Bxb3 22. axb3 Nxc6 $11) 21... fxe6 {[%emt 0:00:08]} 22. Nxd6 {[%emt 0:23:31]} (22. Rxd6 Qc5 23. Rf1 (23. Qxe6+ Kh8 $11) 23... a6 24. Qxe6+ Nf7 $14) 22... Qc5 {[%emt 0:05:41]} (22... Nf7 {was necessary.} 23. Rxe6 (23. Qxe6 $2 Rad8 $19) 23... Rad8) 23. Qxe6+ {[%emt 0:00:09]} Kh7 {[%emt 0:01:32]} (23... Nf7 $142 24. Nf5 (24. Nxb7 Qxc3 25. Rc1 Qd2 $16) 24... Kh7) 24. Qxe5 {[%emt 0:00:17] Active counter play!} Qxf2+ {[%emt 0:00:47]} 25. Kh1 {[%emt 0:00:02]} Qxa2 {[%emt 0:01:00]} 26. Qe2 {[%emt 0:05:11] Inhibits Qc2.} (26. Qe4+ $142 Kh8 27. Nf5) 26... Qa3 $2 {[%emt 0:00:48]} (26... Qxe2 27. Rxe2 Rfd8) 27. c4 {[%emt 0:01:28]} Qc5 {[%emt 0:01:14]} 28. Nxb7 {[%emt 0:01:16]} Qb6 {[%emt 0:00:27]} 29. Rd7 {[%emt 0:01:08] And now Nd6 would win.} Rae8 {[%emt 0:02:05]} 30. Qd3+ {[%emt 0:02:34]} Kg8 {[%emt 0:00:10]} (30... Qg6 $142 31. Qxg6+ Kxg6) 31. Rxe8 {[%emt 0:00:47]} Rxe8 {[%emt 0:00:02]} 32. Rd8 {[%emt 0:00:28]} Rxd8 {[%emt 0:00:09]} 33. Qxd8+ {[%emt 0:00:07]} Qxd8 {[%emt 0:00:01]} 34. Nxd8 {[%emt 0:00:11] White threatens Nc6 and mate.} Kf8 {[%emt 0:00:05]} 35. Nc6 {[%emt 0:00:56]} a6 {[%emt 0:00:09]} 36. c5 {[%emt 0:00:11]} Kf7 {[%emt 0:00:28]} 37. Na5 {[%emt 0:00:08] Weighted Error Value: White=0.38/Black=1.16} 1-0